bitfinex/quotes_ETHUSD_20240811
["timestamp","ask_amount","ask_price","bid_price","bid_amount"]
[1723372610988,3.2322196,2685.4,2684.7,2.6073]
[1723372611192,2.60696,2685.2,2684.8,0.08847424]
[1723372611410,2.60698,2685.1,2684.6,2.4677]
[1723372611555,2.60763,2684.5,2684.1,0.1306378]
[1723372612316,2.60767,2684.4,2684.1,0.1306378]
[1723372612998,5.4761,2685.0,2684.1,0.1306378]
[1723372613287,2.60732,2684.8,2684.1,0.1306378]
[1723372613455,3.115662,2684.8,2684.1,0.1306378]
[1723372613985,2.60737,2684.7,2684.2,2.60784]
[1723372614616,2.4761,2684.6,2684.1,0.1306378]
[1723372614844,2.60785,2684.2,2684.1,0.1306378]
[1723372616610,0.24761,2684.5,2684.1,0.1306378]
[1723372616611,2.60773,2684.4,2684.1,0.1306378]
[1723372616810,0.24761,2684.5,2684.1,0.1306378]
[1723372617123,3.24761,2684.5,2684.1,0.1306378]
[1723372617451,3.115662,2684.8,2684.1,2.7385178]
[1723372617611,3.115662,2684.8,2684.2,2.60783]
[1723372617612,3.0,2684.7,2684.2,2.60783]
[1723372617958,3.0,2684.7,2684.2,2.60777]
[1723372618113,2.4761,2684.9,2684.2,2.60777]
[1723372618114,2.6073,2684.8,2684.2,2.60777]
[1723372618310,3.0,2685.4,2684.7,2.6073]
[1723372618311,2.60674,2685.4,2684.7,2.6073]
[1723372618538,2.60678,2685.3,2684.7,2.6073]
[1723372619411,2.4761,2685.6,2684.9,2.4677]
[1723372619749,2.70101584,2686.8,2685.2,5.21364]
[1723372619750,2.60622,2685.9,2685.2,5.21364]
[1723372620050,2.60622,2685.9,2685.2,2.60681]
[1723372620208,2.60615,2686.0,2685.2,2.60681]
[1723372620407,2.60636,2685.8,2685.2,2.60681]
[1723372621008,0.508225,2685.9,2685.2,2.60681]
[1723372621214,3.508225,2685.9,2685.2,2.60681]
[1723372621921,3.508225,2685.9,2685.3,2.60672]
[1723372622126,6.114435,2685.9,2685.3,2.60672]
[1723372622751,5.60621,2685.9,2685.3,2.60672]
[1723372622957,5.60621,2685.9,2685.1,2.60689]
[1723372622958,2.6064,2685.7,2685.1,2.60689]
[1723372623139,2.6064,2685.7,2685.2,2.60687]
[1723372623852,5.60621,2685.9,2684.8,2.60721]
[1723372623853,2.60676,2685.4,2684.8,2.60721]
[1723372624566,2.4499,2685.6,2684.6,4.90758]
[1723372624567,2.60679,2685.3,2684.6,4.90758]
[1723372624853,2.60696,2685.2,2684.6,4.90758]
[1723372625063,2.60696,2685.2,2684.4,4.90777]
[1723372625367,2.60696,2685.2,2684.4,5.45201108]
[1723372625521,5.21392,2685.2,2684.6,2.6074]
[1723372625922,2.60696,2685.2,2684.6,2.6074]
[1723372626226,2.60696,2685.2,2684.4,5.45201108]
[1723372626227,2.607,2685.1,2684.7,0.07716516]
[1723372626437,2.8937936,2685.1,2684.4,2.60763]
[1723372626618,2.60719,2684.9,2684.8,0.07714455]
[1723372626814,3.45728836,2684.9,2684.3,2.60774]
[1723372627133,3.45728836,2684.9,2684.8,0.07459329]
[1723372627332,3.45728836,2684.9,2684.3,2.60774]
[1723372627556,3.45728836,2684.9,2684.8,0.07459329]
[1723372628029,3.45728836,2684.9,2684.3,2.60774]
[1723372628217,6.06452836,2684.9,2684.8,0.07459329]
[1723372628418,6.06452836,2684.9,2684.3,2.60774]
[1723372628419,2.60754,2684.6,2684.1,0.1306378]
[1723372628749,2.60756,2684.5,2684.1,0.1306378]
[1723372628923,2.60756,2684.5,2684.2,0.07471694]
[1723372629453,0.60645284,2684.8,2684.2,0.07471694]
[1723372629760,2.4499,2684.9,2684.2,0.07471694]
[1723372629761,2.60737,2684.7,2684.2,0.07471694]
[1723372632061,5.2148,2684.7,2684.2,0.07471694]
[1723372632242,2.60737,2684.7,2684.2,0.07471694]
[1723372632646,2.60752,2684.6,2684.2,0.07471694]
[1723372632966,2.60737,2684.7,2684.2,0.07471694]
[1723372633329,2.60722,2684.9,2684.2,0.35604741]
[1723372633667,2.60713,2685.0,2684.4,2.60764]
[1723372633868,3.0,2684.9,2684.4,2.60764]
[1723372634168,3.0,2684.9,2684.5,0.07465511]
[1723372635466,3.0,2685.0,2684.5,0.07465511]
[1723372635675,3.19660836,2684.9,2684.5,0.07465511]
[1723372635840,3.19660836,2684.9,2684.3,2.3002]
[1723372636177,2.60727,2684.8,2684.6,0.0745745]
[1723372636380,3.0,2685.0,2684.5,2.60755]
[1723372636665,3.0,2685.1,2684.7,2.6818939]
[1723372636867,3.0,2685.1,2684.7,2.60734]
[1723372637245,3.0,2685.1,2684.8,0.07522861]
[1723372637444,3.0,2685.1,2684.7,2.60734]
[1723372637646,3.0,2685.1,2684.9,0.07520801]
[1723372637954,3.0,2685.1,2684.5,5.21502]
[1723372638162,5.60698,2685.1,2685.0,0.07518741]
[1723372638329,2.60709,2685.0,2684.5,2.60747]
[1723372638530,3.0,2684.9,2684.5,2.60747]
[1723372638777,3.0,2684.9,2684.6,0.07526982]
[1723372639277,6.0927473,2684.9,2684.6,0.07526982]
[1723372639483,6.0927473,2684.9,2684.1,0.1306378]
[1723372639484,2.60736,2684.7,2684.1,0.1306378]
[1723372639773,2.60749,2684.6,2684.1,2.7385678]
[1723372640285,2.60731,2684.8,2684.1,2.7384878]
[1723372640428,2.60737,2684.7,2684.1,2.7384878]
[1723372640631,2.60758,2684.5,2684.1,0.1306378]
[1723372641177,0.54499,2684.8,2684.2,0.07530665]
[1723372641178,2.60768,2684.4,2684.2,0.07530665]
[1723372641345,5.21542,2684.4,2684.2,0.07530665]
[1723372641667,2.60768,2684.4,2684.2,0.07530665]
[1723372642569,3.15231,2684.8,2684.2,0.07530665]
[1723372642867,5.4499,2684.9,2684.2,2.37550665]
[1723372643036,3.72489,2684.9,2684.2,2.37550665]
[1723372643236,3.0,2684.8,2684.2,2.37550665]
[1723372643558,5.60727,2684.8,2684.2,4.98329665]
[1723372643759,5.60727,2684.8,2684.2,0.07530665]
[1723372643760,3.540636,2684.7,2684.2,0.07530665]
[1723372643960,0.933216,2684.7,2684.2,2.68314665]
[1723372644263,5.60727,2684.8,2684.2,2.68309665]
[1723372644838,2.60742,2684.7,2684.2,0.07530665]
[1723372645162,3.801373,2684.7,2684.2,0.07530665]
[1723372645529,2.60747,2684.6,2684.2,0.07530665]
[1723372646249,3.0,2684.8,2684.2,5.29090665]
[1723372646446,5.60728,2684.8,2684.2,5.29087665]
[1723372646650,6.801219,2684.8,2684.2,2.68307665]
[1723372646954,2.60739,2684.7,2684.2,2.68307665]
[1723372649634,2.60739,2684.7,2684.2,0.07530665]
[1723372650951,5.21481,2684.7,2684.2,0.07530665]
[1723372651305,2.60748,2684.6,2684.2,0.07530665]
[1723372651618,2.60759,2684.5,2684.2,0.07530665]
[1723372651895,2.60739,2684.7,2684.2,0.07530665]
[1723372652300,2.60739,2684.7,2684.2,2.68311665]
[1723372652597,2.60739,2684.7,2684.2,0.07530665]
[1723372652770,5.21483,2684.7,2684.2,0.07530665]
[1723372652971,2.60749,2684.6,2684.2,0.07530665]
[1723372653968,3.9207559,2684.7,2684.2,0.07530665]
[1723372654785,3.9207559,2684.7,2684.2,2.68314665]
[1723372655100,3.0,2684.8,2684.3,2.60775]
[1723372655305,5.60733,2684.8,2684.3,0.07527739]
[1723372655667,5.60733,2684.8,2684.2,2.60784]
[1723372655668,5.60733,2684.8,2684.2,2.60779]
[1723372655862,5.60733,2684.8,2684.4,0.07525678]
[1723372656203,6.801274,2684.8,2684.2,2.60779]
[1723372656370,6.801274,2684.8,2684.5,0.07523617]
[1723372656777,6.801274,2684.8,2684.2,2.60779]
[1723372656778,4.193944,2684.8,2684.2,2.60779]
[1723372657090,6.801254,2684.8,2684.2,2.60777]
[1723372657270,9.90702,2685.1,2684.4,2.60759]
[1723372657609,3.0,2685.0,2684.6,2.60741]
[1723372657812,5.60708,2685.0,2684.5,2.43487798]
[1723372657966,2.60717,2684.9,2684.7,0.07523677]
[1723372658595,2.60717,2684.9,2684.4,5.21519]
[1723372658802,3.0,2685.0,2684.8,0.07517816]
[1723372659075,6.5536265,2685.0,2684.9,0.07515756]
[1723372659400,5.60708,2685.0,2684.4,2.60759]
[1723372659612,5.60708,2685.0,2684.9,0.07515756]
[1723372659773,2.60722,2684.9,2684.3,4.96734]
[1723372659973,2.60722,2684.9,2684.5,0.07523998]
[1723372660174,2.60722,2684.9,2684.4,2.68291059]
[1723372660377,2.60722,2684.9,2684.6,0.07521937]
[1723372660670,2.60722,2684.9,2684.7,0.07519876]
[1723372660890,2.60722,2684.9,2684.4,2.60765]
[1723372661189,2.60722,2684.9,2684.8,0.07517816]
[1723372661508,5.60722,2684.9,2684.8,0.07517816]
[1723372661665,5.60722,2684.9,2684.4,2.60765]
[1723372662022,5.60722,2684.9,2684.3,2.3596]
[1723372662023,9.035875,2684.9,2684.8,0.07517816]
[1723372662303,8.734545,2684.9,2684.5,0.07523998]
[1723372662584,8.734545,2684.9,2684.3,2.3596]
[1723372662718,0.8734545,2684.8,2684.6,0.07521937]
[1723372662867,0.8734545,2684.8,2684.2,2.60777]
[1723372662868,2.60742,2684.7,2684.2,2.60777]
[1723372663302,2.60756,2684.5,2684.1,0.1306378]
[1723372663693,3.48609745,2684.7,2684.1,0.1306378]
[1723372664205,2.60747,2684.6,2684.1,0.1306378]
[1723372664716,2.60747,2684.6,2684.1,2.7385678]
[1723372664882,2.60747,2684.6,2684.1,0.1306378]
[1723372665086,5.21499,2684.6,2684.1,0.1306378]
[1723372665282,2.60747,2684.6,2684.1,0.1306378]
[1723372665700,5.21499,2684.6,2684.1,0.1306378]
[1723372666083,2.60747,2684.6,2684.1,0.1306378]
[1723372667084,2.60747,2684.6,2684.1,2.7385178]
[1723372669610,2.60737,2684.7,2684.2,2.60784]
[1723372670405,3.0,2684.9,2684.3,2.60768]
[1723372670640,9.90682,2685.3,2684.6,2.60745]
[1723372670641,2.60693,2685.2,2684.6,2.60745]
[1723372671125,2.60693,2685.2,2684.7,0.07526337]
[1723372671890,5.60704,2685.1,2684.7,0.07526337]
[1723372672089,5.60704,2685.1,2684.5,2.60752]
[1723372672292,2.60708,2685.0,2684.8,0.07524277]
[1723372672514,2.60708,2685.0,2684.4,5.06221]
[1723372672515,3.0,2684.9,2684.4,5.06221]
[1723372672784,2.60734,2684.8,2684.2,9.49128253]
[1723372672989,2.60742,2684.7,2684.2,9.49128253]
[1723372673191,2.60734,2684.8,2684.2,9.49128253]
[1723372673487,2.60734,2684.8,2684.3,3.81539203]
[1723372673919,3.0,2684.9,2684.5,2.4546]
[1723372674193,3.0,2685.1,2684.5,2.4546]
[1723372674393,5.60703,2685.1,2684.6,2.60743]
[1723372675095,2.91962965,2686.1,2685.2,2.4546]
[1723372675327,2.60636,2685.8,2685.2,2.4546]
[1723372675639,2.60636,2685.8,2685.2,5.06141]
[1723372675936,2.60636,2685.8,2685.3,2.60676]
[1723372676334,2.60636,2685.8,2685.2,2.4546]
[1723372676618,2.60636,2685.8,2685.2,5.06146]
[1723372677128,3.0,2685.7,2685.2,2.4546]
[1723372677438,2.60664,2685.5,2685.0,2.4546]
[1723372677664,2.60693,2685.2,2684.7,2.4546]
[1723372677862,0.821316,2685.5,2684.5,2.4546]
[1723372677863,2.60713,2685.0,2684.5,2.4546]
[1723372679024,2.60713,2685.0,2684.5,5.06216]
[1723372679228,2.60693,2685.2,2684.5,5.9499122]
[1723372679963,2.60693,2685.2,2684.6,2.60739]
[1723372680128,2.60708,2685.0,2684.5,5.06214]
[1723372680333,2.60693,2685.2,2684.5,5.0621]
[1723372680646,3.401213,2685.2,2684.5,5.0621]
[1723372681056,2.60732,2684.8,2684.3,5.06228]
[1723372681226,0.794283,2685.2,2684.3,5.06228]
[1723372681227,2.60712,2685.0,2684.3,2.4546]
[1723372681428,2.60712,2685.0,2684.4,2.6076]
[1723372681852,5.21426,2685.0,2684.4,2.6076]
[1723372682060,2.60712,2685.0,2684.4,2.6076]
[1723372682668,5.21426,2685.0,2684.4,2.6076]
[1723372682872,2.60723,2684.9,2684.4,2.6076]
[1723372683176,2.60732,2684.8,2684.3,2.4546]
[1723372683344,2.60759,2684.5,2684.1,0.1306378]
[1723372683547,2.60727,2684.8,2684.2,2.60782]
[1723372684060,3.0,2684.7,2684.2,2.60782]
[1723372684233,3.0,2684.7,2684.1,0.1306378]
[1723372684234,2.60748,2684.6,2684.1,0.1306378]
[1723372684432,0.821493,2684.6,2684.1,0.1306378]
[1723372684657,2.60761,2684.5,2684.1,0.1306378]
[1723372685560,5.60741,2684.7,2684.1,2.7385678]
[1723372685757,8.21484,2684.7,2684.1,2.7385678]
[1723372685948,2.60747,2684.6,2684.1,0.1306378]
[1723372686148,2.60747,2684.6,2684.2,0.07269594]
[1723372686560,5.60741,2684.7,2684.2,0.07269594]
[1723372686561,2.60756,2684.5,2684.2,0.07269594]
[1723372687277,5.2155,2684.3,2684.2,0.07269594]
[1723372687460,5.2155,2684.3,2684.1,0.1306378]
[1723372687461,5.2157,2684.2,2684.1,0.1306378]
[1723372687783,10.82355,2684.2,2684.1,0.1306378]
[1723372688185,8.2157,2684.2,2684.1,0.1306378]
[1723372688478,9.544018,2684.2,2684.1,0.1306378]
[1723372688852,9.544018,2684.2,2684.1,0.19659062]
[1723372689052,9.544018,2684.2,2684.1,0.1306378]
[1723372689444,6.936168,2684.2,2684.1,0.1306378]
[1723372689671,8.2157,2684.2,2684.1,0.19659062]
[1723372690670,8.2157,2684.2,2684.1,0.1306378]
[1723372691043,13.28335,2684.2,2684.1,0.1306378]
[1723372692388,10.6755,2684.2,2684.1,0.1306378]
[1723372692570,12.003828,2684.2,2684.1,0.1306378]
[1723372694178,14.611678,2684.2,2684.1,0.1306378]
[1723372697235,8.2157,2684.2,2684.1,0.1306378]
[1723372698791,10.82355,2684.2,2684.1,0.1306378]
[1723372699110,13.28335,2684.2,2684.1,0.1306378]
[1723372700551,15.8912,2684.2,2684.1,0.1306378]
[1723372700720,15.8912,2684.2,2683.2,2.4011]
[1723372700721,2.60869,2683.4,2683.2,2.4011]
[1723372700907,5.21699,2683.6,2683.2,2.4011]
[1723372701113,2.60855,2683.5,2683.2,2.4011]
[1723372701309,2.60864,2683.4,2683.3,0.06428568]
[1723372701543,2.60864,2683.4,2682.9,2.4011]
[1723372701841,2.6088,2683.3,2682.9,3.32955925]
[1723372702055,5.60831,2683.8,2682.9,5.93859925]
[1723372702056,2.60847,2683.6,2682.9,5.93859925]
[1723372702207,2.60856,2683.5,2683.0,0.85477693]
[1723372703647,2.60847,2683.6,2683.0,3.46373693]
[1723372704028,2.60847,2683.6,2683.1,2.4635]
[1723372705356,5.21697,2683.6,2683.1,2.4635]
[1723372705558,5.21696,2683.6,2683.1,2.4635]
[1723372705761,2.60847,2683.6,2683.1,2.4635]
[1723372705957,2.60847,2683.6,2683.1,3.08193157]
[1723372706569,2.60766,2684.4,2683.4,2.60858]
[1723372706742,2.60766,2684.4,2683.8,2.60815]
[1723372707060,2.60795,2684.1,2683.7,2.4635]
[1723372707262,2.60802,2684.1,2683.7,2.4635]
[1723372707470,2.4082,2684.3,2683.7,2.4635]
[1723372707471,2.6079,2684.2,2683.7,2.4635]
[1723372707969,2.60795,2684.1,2683.7,2.4635]
[1723372708135,2.60805,2684.0,2683.7,2.4635]
[1723372708336,2.6079,2684.2,2683.7,2.970697]
[1723372708769,2.6079,2684.2,2683.7,5.579017]
[1723372710087,5.60759,2684.5,2683.7,2.4635]
[1723372710226,2.6081,2684.0,2683.7,2.4635]
[1723372710720,2.6081,2684.0,2683.5,2.4635]
[1723372710925,2.60823,2683.9,2683.5,2.4635]
[1723372711960,2.6082,2683.9,2683.5,2.4635]
[1723372712332,2.60829,2683.8,2683.5,2.4635]
[1723372712660,2.6084,2683.7,2683.2,2.4635]
[1723372712963,2.60839,2683.7,2683.2,3.47458041]
[1723372713268,5.21681,2683.7,2683.2,3.47458041]
[1723372713565,5.21681,2683.7,2683.0,6.88349253]
[1723372713566,2.60856,2683.5,2683.0,6.88349253]
[1723372713924,2.60838,2683.7,2683.1,2.60887]
[1723372714158,2.60838,2683.7,2683.3,2.4635]
[1723372716040,2.60838,2683.7,2683.0,6.88349253]
[1723372716041,2.60855,2683.5,2683.0,9.34699253]
[1723372716556,2.4082,2683.7,2683.1,0.06435698]
[1723372716729,0.260836,2683.6,2683.1,0.06435698]
[1723372716921,2.60859,2683.5,2683.1,0.06435698]
[1723372717670,5.21718,2683.5,2683.1,0.06435698]
[1723372717842,2.60863,2683.4,2683.1,0.06435698]
[1723372718663,2.60859,2683.5,2683.1,0.06435698]
[1723372718868,2.60864,2683.4,2683.1,0.06435698]
[1723372719092,2.60859,2683.5,2683.1,0.06435698]
[1723372719300,5.21718,2683.5,2683.1,0.06435698]
[1723372719952,2.60859,2683.5,2683.1,0.06435698]
[1723372720354,5.21718,2683.5,2683.1,0.06435698]
[1723372720554,2.60865,2683.4,2683.1,0.06435698]
[1723372720990,2.60876,2683.3,2683.1,0.06435698]
[1723372721307,5.21764,2683.2,2683.1,0.06435698]
[1723372721456,5.21764,2683.2,2682.7,2.4635]
[1723372721457,2.60882,2683.2,2682.7,2.4635]
[1723372721651,5.60847,2683.6,2683.0,2.60895]
[1723372721889,5.60847,2683.6,2683.2,2.4635]
[1723372722062,3.0,2683.6,2683.2,2.4635]
[1723372722268,3.0,2683.7,2683.3,0.0624478]
[1723372722483,3.0,2683.7,2683.2,2.4635]
[1723372722484,4.531649,2683.7,2683.2,2.4635]
[1723372722678,3.0,2683.7,2683.4,0.06242718]
[1723372722882,3.0,2683.7,2683.3,2.6711678]
[1723372723092,3.0,2683.7,2683.5,0.06242927]
[1723372723405,3.0,2683.8,2683.3,2.60867]
[1723372723696,5.60826,2683.8,2683.3,2.60867]
[1723372724061,5.60826,2683.8,2683.4,0.06240824]
[1723372724853,5.60826,2683.8,2683.3,2.60872]
[1723372725080,5.60826,2683.8,2683.4,0.06240824]
[1723372725591,2.6084,2683.7,2683.4,0.06240824]
[1723372725905,3.0,2683.6,2683.2,2.4635]
[1723372726106,5.60844,2683.6,2683.5,0.06234218]
[1723372726404,5.60844,2683.6,2683.2,2.4635]
[1723372726617,5.60844,2683.6,2683.5,0.06234218]
[1723372726823,3.0,2683.6,2683.2,2.4635]
[1723372727112,3.0,2683.7,2683.2,6.26789525]
[1723372727271,3.0,2683.7,2683.3,0.06238343]
[1723372727471,3.0,2683.7,2683.3,2.60867]
[1723372727672,3.0,2683.7,2683.4,0.0623628]
[1723372727872,2.6081,2684.0,2683.4,3.30398461]
[1723372728073,5.21621,2684.0,2683.4,3.30398461]
[1723372728298,2.4082,2684.3,2683.6,2.3522]
[1723372728499,2.6079,2684.2,2683.6,4.96063]
[1723372728778,2.6079,2684.2,2683.7,0.06229715]
[1723372729079,2.60799,2684.1,2683.7,0.06229715]
[1723372729808,2.4082,2684.3,2683.7,0.06229715]
[1723372729809,5.60805,2684.0,2683.7,0.06229715]
[1723372730509,2.60824,2683.8,2683.7,0.06229715]
[1723372730719,3.560805,2684.0,2683.4,2.3522]
[1723372730877,2.60812,2684.0,2683.7,0.06224414]
[1723372731211,5.60817,2683.9,2683.4,7.56938]
[1723372731394,5.60817,2683.9,2683.8,0.06222352]
[1723372731601,5.60817,2683.9,2683.4,4.96076]
[1723372731806,5.60817,2683.9,2683.8,0.06222352]
[1723372732315,5.60817,2683.9,2683.4,5.717714]
[1723372732613,5.60817,2683.9,2683.8,0.06222352]
[1723372732781,3.0,2683.9,2683.5,2.60853]
[1723372732982,3.0,2684.1,2683.8,0.06222352]
[1723372733215,5.60795,2684.1,2683.6,2.60843]
[1723372733512,5.60795,2684.1,2683.6,3.44861144]
[1723372733702,5.60795,2684.1,2683.7,0.06224414]
[1723372733900,3.0,2684.1,2683.7,0.06224414]
[1723372734105,2.79067359,2684.8,2683.7,0.06224414]
[1723372734106,2.60746,2684.7,2684.1,2.60794]
[1723372734307,2.6072,2684.9,2684.2,5.03449144]
[1723372734308,2.60727,2684.8,2684.2,5.03449144]
[1723372734632,2.60727,2684.8,2684.2,5.09642319]
[1723372734794,2.60727,2684.8,2684.3,2.60768]
[1723372735187,2.60727,2684.8,2684.4,0.06191053]
[1723372735588,3.0,2684.7,2684.4,0.06191053]
[1723372735989,3.0,2684.7,2684.2,4.95999]
[1723372736189,3.0,2684.7,2684.5,0.06188992]
[1723372736412,3.0,2684.7,2684.2,4.95999]
[1723372736615,3.0,2684.7,2684.6,0.06186931]
[1723372736836,3.0,2684.7,2684.2,4.95999]
[1723372737009,3.0,2684.7,2684.6,0.06186931]
[1723372737201,3.0,2684.7,2684.2,4.95999]
[1723372737420,5.60738,2684.7,2684.6,0.06186931]
[1723372737604,5.60738,2684.7,2684.2,4.95999]
[1723372737927,5.60738,2684.7,2684.2,5.716778]
[1723372738101,5.60738,2684.7,2684.3,0.06193114]
[1723372738302,5.60738,2684.7,2684.2,4.95999]
[1723372738518,5.60738,2684.7,2684.4,0.06191053]
[1723372738712,5.60738,2684.7,2684.2,4.95999]
[1723372738903,5.60738,2684.7,2684.5,0.06188992]
[1723372739100,6.479149,2684.7,2684.2,2.3522]
[1723372739304,2.60757,2684.5,2684.2,2.3522]
[1723372739713,2.60791,2684.2,2683.8,6.88349253]
[1723372740091,2.60805,2684.0,2683.8,6.88349253]
[1723372740291,2.60805,2684.0,2683.5,17.39067]
[1723372740292,2.60805,2684.0,2683.5,4.96067]
[1723372740808,5.21582,2684.2,2683.6,2.60837]
[1723372741031,2.60791,2684.2,2683.6,2.60837]
[1723372741493,2.60791,2684.2,2683.7,2.60833]
[1723372745549,7.51553,2683.6,2682.6,2.2751]
[1723372745756,2.60857,2683.5,2683.0,2.2751]
[1723372746049,2.60866,2683.4,2683.0,2.2751]
[1723372746257,2.60866,2683.4,2683.1,0.04581607]
[1723372747858,3.099144,2683.6,2683.1,0.04581607]
[1723372748155,2.60844,2683.6,2683.1,0.04581607]
[1723372748528,5.21694,2683.6,2683.1,0.04581607]
[1723372748915,2.60882,2683.2,2683.1,0.04581607]
[1723372749253,4.90719,2683.5,2682.7,2.6093]
[1723372749461,5.13705,2683.5,2683.1,0.04581607]
[1723372749751,2.60873,2683.3,2683.2,0.04429212]
[1723372749916,2.60873,2683.3,2682.7,2.6093]
[1723372750110,5.60815,2683.9,2683.3,2.2751]
[1723372750408,2.60762,2684.5,2683.9,2.60806]
[1723372750532,2.60776,2684.3,2684.0,2.2751]
[1723372750732,2.60796,2684.1,2684.0,0.04432781]
[1723372751041,2.60796,2684.1,2683.6,4.88353]
[1723372751238,2.60776,2684.3,2684.0,0.04432781]
[1723372751410,0.260762,2684.4,2683.6,7.49187]
[1723372751411,0.260762,2684.4,2683.6,2.2751]
[1723372751614,2.2986,2684.6,2684.1,0.0443072]
[1723372751615,3.0,2684.5,2684.1,0.0443072]
[1723372751858,2.60781,2684.3,2683.7,2.60833]
[1723372752068,2.60782,2684.3,2683.7,5.2166]
[1723372752215,2.60771,2684.4,2683.8,0.04436905]
[1723372752567,5.60778,2684.3,2683.8,0.04436905]
[1723372752859,5.21604,2684.1,2683.6,2.2751]
[1723372753017,5.21604,2684.1,2683.9,0.04410991]
[1723372753213,5.21604,2684.1,2683.6,2.2751]
[1723372753447,5.21604,2684.1,2683.3,2.6087]
[1723372753448,8.336224,2684.1,2684.0,0.04408929]
[1723372753648,8.336224,2684.1,2683.3,4.8838]
[1723372753649,2.60827,2683.8,2683.3,2.2751]
[1723372754216,5.21658,2683.8,2683.3,2.2751]
[1723372754455,2.60827,2683.8,2683.3,2.2751]
[1723372754626,2.60808,2684.0,2683.3,2.2751]
[1723372755041,2.60808,2684.0,2683.5,2.60847]
[1723372756461,2.60814,2683.9,2683.3,2.2751]
[1723372756660,2.869104,2683.8,2683.3,2.2751]
[1723372756828,2.60829,2683.8,2683.3,2.2751]
[1723372757521,2.60829,2683.8,2683.3,4.88382]
[1723372757724,2.2986,2684.5,2682.7,3.16257486]
[1723372757725,2.7223372,2685.1,2683.7,2.2751]
[1723372757924,5.51436082,2685.4,2684.5,2.2751]
[1723372757925,2.60714,2685.0,2684.5,2.2751]
[1723372758149,2.60695,2685.2,2684.5,4.88265]
[1723372758356,2.60695,2685.2,2684.6,2.60739]
[1723372758722,2.60614,2686.0,2684.7,2.2751]
[1723372758723,2.60611,2686.0,2684.7,2.2751]
[1723372758917,2.60622,2685.9,2684.7,2.2751]
[1723372759117,2.60643,2685.7,2684.2,2.60782]
[1723372759451,2.60643,2685.7,2684.1,2.2751]
[1723372759452,2.60737,2684.7,2684.1,4.88301]
[1723372759761,0.521465,2684.6,2684.1,4.88301]
[1723372759960,2.60737,2684.7,2684.1,4.88301]
[1723372760163,2.60728,2684.8,2684.2,2.60785]
[1723372760739,3.0,2684.7,2684.2,2.60785]
[1723372760936,3.0,2684.7,2684.1,2.2751]
[1723372761148,3.0,2684.7,2684.3,0.04384207]
[1723372761149,2.60749,2684.6,2684.3,0.04384207]
[1723372761458,3.168218,2684.6,2684.1,2.2751]
[1723372761671,3.168218,2684.6,2684.4,0.04393497]
[1723372761816,2.60757,2684.5,2684.0,2.60798]
[1723372762016,2.60757,2684.5,2683.8,4.88328]
[1723372762017,2.60769,2684.4,2683.8,4.88328]
[1723372763356,0.6168218,2684.5,2684.1,2.60794]
[1723372763669,3.0,2684.5,2684.0,2.60796]
[1723372764230,3.0,2684.5,2683.8,4.8833]
[1723372764231,5.60756,2684.5,2683.8,4.88326]
[1723372764543,3.0,2684.5,2684.1,2.60792]
[1723372764740,3.0,2684.7,2684.2,2.60785]
[1723372765147,3.0,2684.7,2684.3,2.60774]
[1723372765331,2.60711,2685.0,2684.4,2.60763]
[1723372766272,2.60711,2685.0,2684.4,2.60759]
[1723372766640,3.0,2684.9,2684.4,2.60759]
[1723372767744,2.60728,2684.8,2684.3,2.2607]
[1723372767984,3.689434,2684.8,2684.3,2.2607]
[1723372768678,1.082154,2684.8,2684.3,4.86843]
[1723372770570,3.0,2684.9,2684.4,2.60764]
[1723372770773,5.60707,2685.0,2684.4,2.6076]
[1723372771074,3.0,2685.0,2684.6,2.60737]
[1723372771276,3.0,2685.1,2684.6,5.21477]
[1723372771583,3.0,2685.1,2684.6,2.60737]
[1723372771732,6.167743,2685.1,2684.5,2.60755]
[1723372772135,2.60708,2685.0,2684.4,2.60761]
[1723372772359,3.0,2684.9,2684.5,2.60754]
[1723372772573,5.60719,2684.9,2684.4,2.60762]
[1723372772774,6.57243303,2684.9,2684.4,2.60762]
[1723372772975,6.57243303,2684.9,2684.3,2.2607]
[1723372773270,6.57243303,2684.9,2684.3,2.60773]
[1723372773581,2.60727,2684.8,2684.2,12.09903253]
[1723372774097,6.43004303,2684.9,2684.2,6.88349253]
[1723372774298,2.60759,2684.5,2684.2,6.88349253]
[1723372774935,2.60766,2684.4,2684.2,6.88349253]
[1723372775169,2.60757,2684.5,2684.2,6.88349253]
[1723372775597,2.60775,2684.3,2684.2,6.88349253]
[1723372775753,2.60757,2684.5,2684.2,6.88349253]
[1723372776409,2.60757,2684.5,2684.3,0.04218862]
[1723372776685,2.60757,2684.5,2684.2,6.88349253]
[1723372776869,2.60757,2684.5,2684.4,0.04216801]
[1723372777189,0.507222,2684.6,2684.4,0.04216801]
[1723372777486,0.507222,2684.6,2684.1,2.60794]
[1723372777690,5.21483,2684.7,2684.5,0.0421474]
[1723372777898,5.21483,2684.7,2684.1,2.60794]
[1723372778188,2.6074,2684.7,2684.1,2.60794]
[1723372778347,2.60746,2684.6,2684.2,0.04220923]
[1723372778749,2.60746,2684.6,2684.0,4.86872]
[1723372778750,2.60746,2684.6,2684.0,4.86869]
[1723372778984,2.60746,2684.6,2684.3,0.04218862]
[1723372779205,2.60746,2684.6,2684.0,4.86869]
[1723372779398,2.60765,2684.4,2683.8,2.60817]
[1723372779911,2.60765,2684.4,2683.8,5.21635]
[1723372780067,2.60765,2684.5,2683.8,5.21635]
[1723372780068,2.60765,2684.5,2683.9,2.60814]
[1723372780403,2.60762,2684.5,2684.0,2.60803]
[1723372780575,3.1539,2684.7,2684.1,2.60789]
[1723372781162,2.60753,2684.6,2684.0,3.12965]
[1723372781388,2.60758,2684.5,2684.0,2.60803]
[1723372783199,2.60742,2684.7,2684.0,2.60799]